Cogmind - Beta 9.6 @@@ ROGUE MODE // 2020.05.15 @ 21:58:37 Player: Nalzok Result: Destroyed by S-10 Pest with Light Assault Rifle Performance ------------- Evolutions (1) 500 Regions Visited (2) 400 Robots Destroyed (1) 5 Value Destroyed (34) 34 Prototype IDs (0) 0 Alien Tech Used (0) 0 Bonus (0) 0 TOTAL SCORE: 939 Bonus ------- None Cogmind --------- Core Integrity 0/400 Matter 300/300 Energy 98/100 System Corruption 0% Temperature Cool (0) Movement Core (50) Location -9/Materials Parts ------- > --- POWER (1) -------- (None) > --- PROPULSION (2) --- (None) > --- UTILITY (4) ------ Signal Interpreter > --- WEAPON (2) ------- (None) > --- INVENTORY (4) ---- Ion Engine Aluminum Leg Peak State ------------ > --- POWER ------------ Ion Engine > --- PROPULSION ------- Aluminum Leg Aluminum Leg > --- UTILITY ---------- Improved Heat Sink Small Storage Unit > --- WEAPON ----------- Light Assault Rifle > --- INVENTORY -------- Ion Engine [Rating: 8] Favorites ----------- Power Ion Engine Engine Ion Engine Propulsion Aluminum Leg Leg Aluminum Leg Utility Small Storage Unit Device Improved Heat Sink Storage Small Storage Unit Processor Signal Interpreter Weapon Assault Rifle Energy Gun Medium Laser Ballistic Gun Assault Rifle Build | -11 -10 -9 ------- Run | Scr Mat Mat Slots Evolved 2 | . . 2 Power . | . . . Propulsion . | . . . Utility 2 | . . 2 Weapon . | . . . Parts Attached 4 | . 3 1 Power . | . . . Engine . | . . . Core . | . . . Reactor . | . . . Propulsion 1 | . 1 . Treads . | . . . Leg 1 | . 1 . Wheel . | . . . Hover . | . . . Flight . | . . . Utility 2 | . 1 1 Device 1 | . 1 . Storage . | . . . Processor 1 | . . 1 Hackware . | . . . Protection . | . . . Artifact . | . . . Weapon 1 | . 1 . Energy Gun . | . . . Energy Cannon . | . . . Ballistic Gun 1 | . 1 . Ballistic Cannon . | . . . Launcher . | . . . Special Weapon . | . . . Impact Weapon . | . . . Slashing Weapon . | . . . Piercing Weapon . | . . . Special Melee Weapon . | . . . Unidentified Prototypes . | . . . Parts Lost 3 | . 3 . Power 1 | . 1 . Propulsion . | . . . Utility . | . . . Weapon 2 | . 2 . Highest Loss Streak 3 | . 3 . Average Slot Usage (%) 54 | . 81 29 Engine 6 | . 12 . Leg 19 | . 28 11 Device 3 | . 1 5 Storage 9 | . 14 5 Energy Gun 4 | . 10 . Ballistic Gun 9 | . 14 5 Naked Turns 40 | . . 40 Heaviest Build 13 | 13 13 6 Greatest Support 20 | 20 20 20 Greatest Overweight (x) . | . . . Average Overweight (x) . | . . . Largest Inventory Capacity 6 | 6 6 6 Average Capacity 5 | 6 6 4 Most Carried 5 | 5 2 2 Average Carried 1 | 4 1 2 Final Capacity 6 | 6 6 4 Final Carried 2 | 2 2 2 Class Distribution -------------------- 100% | Mutant Dominant Class ---------------- Mutant | -10/Materials Mutant | -9/Materials Resources | -11 -10 -9 ----------- Run | Scr Mat Mat Matter Collected 250 | 187 63 . Remotely . | . . . Salvage Created 33 | . 33 . Parts 2 | . 2 . Haulers Intercepted . | . . . Recyclers Shooed . | . . . Parts Field Recycled . | . . . Retrieved Matter . | . . . Parts Self-Destructed . | . . . Prevented . | . . . Kills | -11 -10 -9 ------- Run | Scr Mat Mat Combat Hostiles Destroyed 1 | . 1 . Guns 1 | . 1 . Classes Destroyed 1 | . 1 . Grunt 1 | . 1 . Best Kill Streak 1 | . 1 . Combat Bots Only 1 | . 1 . Max Kills in Single Turn 1 | . 1 . Gunslinging . | . . . Exploded . | . . . Melee . | . . . Uniques/NPCs Destroyed . | . . . Combat | -11 -10 -9 -------- Run | Scr Mat Mat Damage Taken 1058 | . 539 519 Core 517 | . 113 404 Absorbed by Shields . | . . . Core Remaining (%) 77 | 100 54 . Volleys Fired 17 | . 17 . Largest 2 | . 2 . Hottest 70 | . 70 . Shots Fired 25 | . 25 . Gun 25 | . 25 . Cannon . | . . . Launcher . | . . . Special . | . . . Kinetic 17 | . 17 . Thermal 8 | . 8 . Explosive . | . . . Electromagnetic . | . . . Robot Hit Streak 8 | . 8 . Robot Miss Streak 4 | . 4 . Penetration Max . | . . . Secondary Targets . | . . . Shots Hit Robots 15 | . 15 . Core Hits 6 | . 4 2 Critical Hits 1 | . 1 . Critical Kills . | . . . Critical Parts Destroyed 1 | . 1 . Melee Attacks . | . . . Impact . | . . . Slashing . | . . . Piercing . | . . . Sneak Attacks . | . . . Combat Hostiles . | . . . Follow-up Attacks . | . . . Damage Inflicted 222 | . 193 29 Guns 193 | . 193 . Cannons . | . . . Explosions . | . . . Melee . | . . . Ramming 29 | . . 29 Kinetic 117 | . 117 . Thermal 76 | . 76 . Explosive . | . . . Electromagnetic . | . . . Impact . | . . . Slashing . | . . . Piercing . | . . . Highest Corruption . | . . . Average Corruption . | . . . Corruption Purged . | . . . Overload Shots . | . . . Overflow Damage . | . . . Projectiles . | . . . Explosions . | . . . Melee . | . . . Knockbacks . | . . . Impact . | . . . Kinetic . | . . . Secondary . | . . . Self-Inflicted Damage 13 | . . 13 Shots . | . . . Rammed 6 | . . 6 Targets Rammed 6 | . . 6 Kicked . | . . . Crushed . | . . . Highest Temperature 147 | . 147 . Average Temperature 75 | . 75 . Received Heat Transfer 306 | . 156 150 Siege Activations . | . . . Robots Corrupted . | . . . Combat Hostiles . | . . . Parts Fried . | . . . Impact Corruptions . | . . . Robots Melted . | . . . Combat Hostiles . | . . . Parts Melted . | . . . Heat Transferred 222 | . 222 . Parts Sabotaged . | . . . Parts Stolen . | . . . Parts Stripped . | . . . Power Chain Reactions . | . . . Missiles Intercepted . | . . . Alert | -11 -10 -9 ------- Run | Scr Mat Mat Peak Influence 20 | . 20 15 Average Influence 2 | . 4 . Maximum Alert Level . | . . . Low Security (%) 100 | 100 100 100 Level 1 . | . . . Level 2 . | . . . Level 3 . | . . . Level 4 . | . . . Level 5 . | . . . High Security . | . . . Max Security . | . . . Squads Dispatched 1 | . . 1 Investigation 1 | . . 1 Extermination . | . . . Reinforcement . | . . . Assault . | . . . Garrison . | . . . Intercept . | . . . Construction Impeded . | . . . Haulers Reinforced . | . . . Stealth | -11 -10 -9 --------- Run | Scr Mat Mat Distress Signals 2 | . 1 1 Communications Jammed . | . . . Distress Signals . | . . . Times Spotted 37 | . 8 29 Peak Tracking Total 14 | . 5 14 Tactical Retreats 3 | . 1 2 Traps | -11 -10 -9 ------- Run | Scr Mat Mat Traps Triggered . | . . . Indirectly . | . . . Trap Hack Attempts . | . . . Triggered . | . . . Disarmed . | . . . Reprogrammed . | . . . Reused . | . . . Traps Extracted . | . . . Installed . | . . . Triggered . | . . . Machines | -11 -10 -9 ---------- Run | Scr Mat Mat Machines Disabled . | . . . Max in Single Turn . | . . . Machines Sabotaged . | . . . Garrisons Compromised . | . . . Overloaded Fab Kills . | . . . Fab Network Shutdowns . | . . . Hacking | -11 -10 -9 --------- Run | Scr Mat Mat Machines Accessed 2 | . . 2 Terminals 2 | . . 2 Fabricators . | . . . Repair Stations . | . . . Recycling Units . | . . . Scanalyzers . | . . . Garrison Access . | . . . Total Hacks 5 | . . 5 Successful . | . . . Failed 5 | . . 5 Catastrophic 1 | . . 1 Database Lockouts . | . . . Manual 5 | . . 5 Terminals 5 | . . 5 Fabricators . | . . . Repair Stations . | . . . Recycling Units . | . . . Scanalyzers . | . . . Garrison Access . | . . . Terminal Hacks . | . . . Fabricator Hacks . | . . . Repair Station Hacks . | . . . Recycling Unit Hacks . | . . . Scanalyzer . | . . . Garrison Access Hacks . | . . . Unauthorized Hacks . | . . . Terminals . | . . . Fabricators . | . . . Repair Stations . | . . . Recycling Units . | . . . Scanalyzers . | . . . Garrison Access . | . . . Data Cores Recovered . | . . . Used . | . . . Hacking Detections 2 | . . 2 Full Trace Events 2 | . . 2 Feedback Events . | . . . Feedback Blocked . | . . . Robot Schematics Acquired . | . . . Robots Built . | . . . Matter . | . . . Time . | . . . Total Robot Build Rating . | . . . Part Schematics Acquired . | . . . Parts Built . | . . . Matter . | . . . Time . | . . . Total Part Build Rating . | . . . Parts Repaired . | . . . Time . | . . . Parts Recycled . | . . . Recycled Matter . | . . . Retrieved Matter . | . . . Retrieved Components . | . . . Parts Scanalyzed . | . . . Part Schematics Acquired . | . . . Parts Damaged . | . . . Bothacking | -11 -10 -9 ------------ Run | Scr Mat Mat Used RIF Installer . | . . . Robots Hacked . | . . . Non-combat . | . . . Combat . | . . . Robot Hacks Applied . | . . . Relay Couplers Released . | . . . Robots Rewired . | . . . Allies Hacked . | . . . Hacks Repelled . | . . . Allies | -11 -10 -9 -------- Run | Scr Mat Mat Total Allies . | . . . Largest Group . | . . . Highest-Rated Group . | . . . Highest-Rated Ally . | . . . Total Orders . | . . . Ally Attacks . | . . . Total Damage . | . . . Kills . | . . . Allies Corrupted . | . . . Allies Melted . | . . . Intel | -11 -10 -9 ------- Run | Scr Mat Mat Robot Analysis Total . | . . . Derelict Logs Recovered . | . . . Drone Launches . | . . . Drone Recoveries . | . . . Exploration | -11 -10 -9 ------------- Run | Scr Mat Mat Turns Passed 234 | 2 115 117 Spaces Moved 206 | 1 47 158 Core 114 | . . 114 Treads . | . . . Legs 92 | 1 47 44 Wheels . | . . . Hover . | . . . Flight . | . . . Fastest Speed 50 | 120 120 50 Average Speed 81 | 120 120 69 Slowest Speed 120 | 120 120 120 Overloaded Moves . | . . . Propulsion Burnouts . | . . . Robots Hopped . | . . . Cave-ins Triggered . | . . . Exploration Rate (%) 11 | 2 16 15 Regions Visited 2 Branch Regions . Pre-discovered Areas . | . . . Known Exits Taken . | . . . Unknown Exits Taken 2 | 1 1 . Scrap Searched . | . . . Spaces Dug . | . . . Terrain Destroyed . | . . . Melee . | . . . Projectile . | . . . AOE . | . . . Actions | -11 -10 -9 --------- Run | Scr Mat Mat Total 250 | 4 81 165 Wait 15 | . 15 . Move 204 | . 46 158 Hop . | . . . Pick Up . | . . . Fast Attach 2 | . 1 1 Attach 1 | . 1 . Detach . | . . . Swap 1 | . 1 . Drop 4 | 4 . . Fire 17 | . 17 . Melee . | . . . Ram 6 | . . 6 Kick . | . . . Crush . | . . . Escape Stasis . | . . . Rewire . | . . . Trap . | . . . Miscellaneous . | . . . Route ------- -11/Scrapyard -10/Materials -9/Materials History --------- Turn | Location | Event 3 | -11/Scrapyard | Discovered new exit (range 0) 3 | -11/Scrapyard | Entered Materials 105 | -10/Materials | Discovered new exit (range 8) 118 | -10/Materials | Entered another Materials area 118 | -9/Materials | Evolved 2 slots: Utility x2 137 | -9/Materials | Lost 3 parts (1p2w) 171 | -9/Materials | Released all parts (5) 191 | -9/Materials | Core integrity fell below 50% 226 | -9/Materials | Core integrity fell below 20% 235 | -9/Materials | Destroyed by S-10 Pest with Light Assault Rifle Last Messages --------------- 00141_ ALERT: Suspicious activity at Terminal M012. Dispatching Investigation squad. 00145_ Connecting with Terminal... 00159_ K-01 Serf collects debris. 00171_ Released Aluminum Leg. 00171_ Released Imp. Heat Sink. 00171_ Released Sml. Storage Unit. 00171_ Released Aluminum Leg. 00171_ Released Lgt. Assault Rifle. 00179_ K-01 Serf collects debris. 00183_ C-30 ARC bursts open, deploying its payload. 00183_ S-10 Pest unfolds itself. 00185_ Slammed into Y-45 Defender. 00187_ S-10 Pest destroyed. 00189_ Slammed into G-34 Mercenary. 00196_ S-10 Pest destroyed. 00198_ K-01 Serf collects debris. 00211_ Acquired Signal Interpreter. 00224_ Slammed into S-10 Pest. 00232_ W-16 Scout sends out distress signal. Map ----- +----------------------------------------------------+ | ???????????????????????????????????????# ??# | | ???????????????????????????????????????# ????## | | ???????????????????????????????????????###???????# | | ?????????????????????????????????????????????????# | | ?????????????????????????????????????????????????# | | ?????????????????????????????????????????????????# | | ?????????????????????????????????????????????????# | | ?????????????????????????????????????????????????# | | ?????????????????????????????????????????????????# | | ?????????????????????????????????????#####???????# | | ?????????????????????????????????????#"""#???????# | | ????????????????????###########??????#"T"#???????# | | ????????????????????# ########" "######### | | ????????????????????# """"""" # | | ????????????????????# """"""" # | | ????????????????????# """"""" / "" | | ????????????????????# """"""" # """ T" | | ????????????????????# """"""" # """ "" ##### | | ????????????????????# %# """ #???? | | ????????????????????# # #???? | | ????????????????????########### #???? | | ??????????????????????????????# """ """ #???? | | ??????????????##T############## """ """ #???? | | ????????????? ws """ """ #???? | | ?????????????? ???? | | ?????????????????""" """@ ??? | | ??????????????????"" """ ???? | | ??????????????????"" """ #### ##############???? | | ??????????????? #??# #????????????????? | | ?????????????? #??#+#????????????????? | | ????????????? #??? ?????????????????? | | ???????????? #???"?????????????????? | | ????????????? #?????????????????????? | | ????????????? g/?????????????????????? | | ????????????? a #?????????????????????? | | ?????????????? g #?????????????????????? | | ??????????????########## ###?????????????????????? | | ???????????????????????# ????????????????????????? | | ???????????????????????+ ????????????????????????? | | ???????????????????????# ????????????????????????? | | ???????????????????????# ????????????????????????? | | ???????????????????????# ????????????????????????? | | ?????????????????????????????????????????????????? | | ?????????????????????????????????????????????????? | | ?????????????????????????????????????????????????? | | ?????????????????????????????????????????????????? | | ?????????????????????????????????????????????????? | | ?????????????????????????????????????????????????? | | ?????????????????????????????????????????????????? | | ?????????????????????????????????????????????????? | +----------------------------------------------------+ Best States ------------- Heat Dissipation 42 Energy Generation 10 Energy Capacity 250 Matter Stores 300 Matter Capacity 300 Sight Range 16 Terrain Scan Density 10 Evasion (%) 50 Item Schematics ----------------- None Robot Schematics ------------------ None Fabricated ------------ Nothing Alien Tech Used ----------------- None Achievements -------------- None Challenges ------------ None Game ------ Seed ThunderCoordinationCanceller Manual? 0 Play Time 00:04:22 Cumulative 261.1 hours Start 2020.05.15 @ 15:00:17 End 2020.05.15 @ 21:58:37 Sessions 3 Manual Loads 0 Difficulty Rogue Special Mode None Game No. 402 Rogue 401 Adventurer 0 Explorer 1 Win Type - Total 1 Types 1/0/0/0/0/0/0 Lore% 67 Gallery% 80 Achievement% 54 Wizard Run 0 Options --------- ASCII 1 Keyboard 1 Movement Vi Keybinds 0 Fullscreen 2 Font 14/Cog Map View 72x54 Tactical HUD 1 Map Filters NONE Filters LOW_CONTRAST(13,24,33) Steam 0 RUN: c6fa7854-8b6f-4adb-88de-6b64d7ed575a